[Event "Almaty Open 2018"]
[Site "Almaty"]
[Date "2018.10.22"]
[Round "8"]
[White "Askarov, Bakhtiyar"]
[Black "Daurimbetov, A."]
[Result "1-0"]
[ECO "A48"]
[WhiteElo "2428"]
[BlackElo "2282"]
[Annotator "ChessBase"]
[PlyCount "87"]
[EventDate "2018.10.16"]
[EventType "swiss"]
[EventCountry "KAZ"]
[SourceTitle "playchess.com"]
[Source "ChessBase"]
[SourceQuality "1"]
[TimeControl "5400+30"]

1. d4 {[%emt 0:19:45]} Nf6 {[%emt 0:00:45]} 2. Nf3 {[%emt 0:01:32]} g6 {[%emt 0:00:05]} 3. Bf4 {[%emt 0:01:59]} Bg7 {[%emt 0:00:08]} 4. e3 {[%emt 0:00:04]} d6 {[%emt 0:00:08]} 5. h3 {[%emt 0:00:04]} b6 {[%emt 0:00:13]} 6. Be2 {[%emt 0:00:23]} Bb7 {[%emt 0:00:04]} 7. O-O {[%emt 0:00:11]} O-O {[%emt 0:00:05]} 8. a4 {[%emt 0:00:46]} a5 {[%emt 0:00:57]} 9. Na3 {[%emt 0:00:39]} Nbd7 {[%emt 0:00:33]} 10. Bh2 {[%emt 0:00:29]} Ne4 {[%emt 0:00:30]} 11. Nc4 {[%emt 0:01:55]} f5 {[%emt 0:05:00]} 12. c3 {[%emt 0:00:28]} g5 {[%emt 0:01:27]} 13. Ne1 {[%emt 0:02:56]} e6 {[%emt 0:02:04]} 14. Nd3 {[%emt 0:10:24]} Qe7 {[%emt 0:06:39]} 15. Qc2 {[%emt 0:02:44]} Bd5 {[%emt 0:08:13]} 16. Na3 {[%emt 0:05:43]} g4 {[%emt 0:04:06]} 17. c4 {[%emt 0:15:25]} Bb7 {[%emt 0:02:02]} 18. hxg4 {[%emt 0:00:24]} Qh4 {[%emt 0:02:24]} 19. gxf5 {[%emt 0:18:53]} Rxf5 {[%emt 0:02:07]} 20. g3 {[%emt 0:01:19]} Qh3 {[%emt 0:15:16]} 21. d5 {[%emt 0:02:30]} exd5 {[%emt 0:02:43]} 22. Nf4 {[%emt 0:01:12]} Rxf4 {[%emt 0:00:44]} 23. exf4 {[%emt 0:01:14]} Bd4 {[%emt 0:01:26]} 24. Nb5 {[%emt 0:01:34]} Bc5 {[%emt 0:02:58]} 25. Bf3 {[%emt 0:02:33]} Nxg3 {[%emt 0:01:01]} 26. Bg2 {[%emt 0:00:23]} Qg4 {[%emt 0:00:14]} 27. Bxg3 {[%emt 0:01:12]} Qxg3 {[%emt 0:00:03]} 28. Ra3 {[%emt 0:02:27]} Qg7 {[%emt 0:01:47]} 29. Rh3 {[%emt 0:00:54]} d4 {[%emt 0:06:51]} 30. Rh2 {[%emt 0:00:04]} Kh8 {[%emt 0:00:31]} 31. Kh1 {[%emt 0:00:14]} Bxg2+ {[%emt 0:00:23]} 32. Rxg2 {[%emt 0:00:07]} Qh6+ {[%emt 0:00:01]} 33. Rh2 {[%emt 0:00:20]} Qg7 {[%emt 0:01:28]} 34. Rg1 {[%emt 0:00:49]} Qe7 {[%emt 0:01:27]} 35. Nxc7 {[%emt 0:00:35]} Rg8 {[%emt 0:00:49]} 36. Rxg8+ {[%emt 0:01:00]} Kxg8 {[%emt 0:00:01]} 37. Nd5 {[%emt 0:01:43]} Qe1+ {[%emt 0:06:53]} 38. Kg2 {[%emt 0:00:06]} d3 {[%emt 0:00:33]} 39. Qxd3 {[%emt 0:00:10]} Qxf2+ {[%emt 0:01:53]} 40. Kh3 {[%emt 0:00:07]} Qe1 {[%emt 0:00:58]} 41. Qf3 {[%emt 0:00:50]} Nf8 {[%emt 0:01:55]} 42. Re2 {[%emt 0:00:45]} Qb1 {[%emt 0:01:51]} 43. f5 {[%emt 0:02:01]} Qd1 {[%emt 0:07:24]} 44. Rg2+ {[%emt 0:00:10]} 1-0

[Event "Almaty Open 2018"]
[Site "Almaty"]
[Date "2018.10.22"]
[Round "8"]
[White "Moisseyenko, Ilya"]
[Black "Urazayev, Arystanbek"]
[Result "0-1"]
[ECO "D37"]
[WhiteElo "2300"]
[BlackElo "2321"]
[Annotator "ChessBase"]
[PlyCount "78"]
[EventDate "2018.10.16"]
[EventType "swiss"]
[EventCountry "KAZ"]
[SourceTitle "playchess.com"]
[Source "ChessBase"]
[SourceQuality "1"]
[TimeControl "5400+30"]

1. d4 {[%emt 0:00:00]} Nf6 {[%emt 0:00:51]} 2. Nf3 {[%emt 0:01:22]} e6 {[%emt 0:00:05]} 3. c4 {[%emt 0:00:05]} d5 {[%emt 0:00:03]} 4. Nc3 {[%emt 0:00:08]} dxc4 {[%emt 0:00:04]} 5. e3 {[%emt 0:00:32]} a6 {[%emt 0:00:24]} 6. a4 {[%emt 0:00:54]} c5 {[%emt 0:00:55]} 7. Bxc4 {[%emt 0:00:08]} Nc6 {[%emt 0:00:26]} 8. O-O {[%emt 0:01:13]} Be7 {[%emt 0:00:08]} 9. Ne5 {[%emt 0:13:09]} cxd4 {[%emt 0:01:26]} 10. Nxc6 {[%emt 0:00:14]} bxc6 {[%emt 0:00:05]} 11. exd4 {[%emt 0:00:08]} a5 {[%emt 0:00:04]} 12. Qf3 {[%emt 0:01:50]} Nd5 {[%emt 0:01:43]} 13. Ne4 {[%emt 0:02:02]} O-O {[%emt 0:02:20]} 14. Rd1 {[%emt 0:03:59]} Ba6 {[%emt 0:01:04]} 15. b3 {[%emt 0:00:23]} Qb6 {[%emt 0:05:18]} 16. Bg5 {[%emt 0:05:38]} Bxg5 {[%emt 0:27:39]} 17. Nxg5 {[%emt 0:00:05]} h6 {[%emt 0:00:53]} 18. Ne4 {[%emt 0:00:09]} Rfd8 {[%emt 0:01:16]} 19. Nc5 {[%emt 0:19:36]} Bxc4 {[%emt 0:01:24]} 20. bxc4 {[%emt 0:00:02]} Nb4 {[%emt 0:00:09]} 21. Qe2 {[%emt 0:11:50]} Rab8 {[%emt 0:01:08]} 22. Rab1 {[%emt 0:00:36]} Qc7 {[%emt 0:00:41]} 23. Rb3 {[%emt 0:03:41]} e5 {[%emt 0:05:46]} 24. Rg3 {[%emt 0:17:05]} Rxd4 {[%emt 0:01:39]} 25. Rxd4 {[%emt 0:00:07]} exd4 {[%emt 0:00:03]} 26. h4 {[%emt 0:00:24]} Rd8 {[%emt 0:15:40]} 27. h5 {[%emt 0:03:53]} Qf4 {[%emt 0:05:11]} 28. Nd7 {[%emt 0:03:38]} Qf5 {[%emt 0:06:02]} 29. Nb6 {[%emt 0:07:53]} Qe6 {[%emt 0:03:03]} 30. Qd2 {[%emt 0:00:35]} c5 {[%emt 0:00:58]} 31. Nd5 {[%emt 0:00:14]} Nxd5 {[%emt 0:00:12]} 32. cxd5 {[%emt 0:00:03]} Rxd5 {[%emt 0:00:29]} 33. Qxa5 {[%emt 0:01:31]} c4 {[%emt 0:00:46]} 34. Qb4 {[%emt 0:01:03]} c3 {[%emt 0:04:37]} 35. Qc4 {[%emt 0:00:48]} Qe1+ {[%emt 0:00:17]} 36. Kh2 {[%emt 0:00:03]} Rxh5+ {[%emt 0:00:10]} 37. Rh3 {[%emt 0:00:02]} Rxh3+ {[%emt 0:00:06]} 38. gxh3 {[%emt 0:00:18]} Qxf2+ {[%emt 0:00:04]} 39. Kh1 {[%emt 0:00:04]} c2 {[%emt 0:00:31]} 0-1

[Event "Almaty Open 2018"]
[Site "Almaty"]
[Date "2018.10.22"]
[Round "8"]
[White "Primbetov, Kazbek"]
[Black "Kekelidze, Mikheil"]
[Result "0-1"]
[ECO "E94"]
[WhiteElo "2251"]
[BlackElo "2360"]
[Annotator "NA"]
[PlyCount "72"]
[EventDate "2018.10.16"]
[EventType "swiss"]
[EventCountry "KAZ"]
[SourceTitle "playchess.com"]
[Source "ChessBase"]
[SourceQuality "1"]
[TimeControl "5400+30"]

{[%evp 8,60,47,32,32767,32767,28,31,45,32,41,33,35,32767,6,-12,7,32767,0,-34,-30,-40,-29,-40,-23,-29,-29,-35,-32,-20,-27,-28,-26,-31,-35,-134,-139,-242,-283,-280,-161,-304,-208,-604,0,32767,32767,-145,-103,-157,-135,-774,-801,-4818,-875]} 1. d4 {[%emt 0:02:41]} Nf6 {[%emt 0:00:00]} 2. Nf3 {[%emt 0:00:31]} g6 {[%emt 0:04:05]} 3. c4 {[%emt 0:02:17]} Bg7 {[%emt 0:00:06]} 4. Nc3 {[%emt 0:00:06]} O-O {[%emt 0:00:34]} 5. e4 {[%emt 0:00:06]} d6 {[%emt 0:00:18]} 6. Be2 {[%emt 0:00:12]} e5 {[%emt 0:07:07]} 7. O-O {[%emt 0:01:32]} exd4 {[%emt 0:00:38]} 8. Nxd4 {[%emt 0:00:08]} Re8 {[%emt 0:00:04]} 9. f3 {[%emt 0:15:59] LiveBook: 1619 Games} c6 {[%emt 0:02:30]} 10. Re1 {[%emt 0:18:20] E94: King's Indian: Classical: 6 Be2 e5 7 0-0: Various Black 7th moves} (10. Kh1 Nbd7 11. Bg5 Qb6 12. Na4 Qc7 13. Qd2 Nc5 14. Nc3 a5 15. Rab1 a4 16. b4 axb3 17. axb3 Nfd7 18. Be3 Ne6 19. Rfd1 Ndc5 {1-0 (45) Dubov,D (2658)-Kokarev,D (2620) Sochi 2017}) 10... d5 {[%emt 0:20:57]} 11. cxd5 {[%emt 0:00:25]} cxd5 {[%emt 0:00:04]} 12. Bb5 {[%emt 0:00:24]} Nc6 {[%emt 0:06:31]} 13. Be3 {[%emt 0:07:37]} Bd7 {[%emt 0:02:41]} 14. Bxc6 $146 {[%emt 0:25:18]} ({Predecessor:} 14. exd5 Nxd5 15. Nxc6 bxc6 16. Nxd5 Bxb2 17. Rb1 Bg7 18. Bf1 Bf5 19. Nf4 Rxe3 20. Rxe3 Bd4 21. Kf2 Bxb1 22. Qxb1 Qh4+ 23. g3 Qxh2+ 24. Ng2 Re8 {0-1 (24) Olesen,M (2230)-Burgess,G (2350) Aarhus 1989}) 14... Bxc6 {[%emt 0:00:55]} 15. Nxc6 {[%emt 0:00:33]} bxc6 {[%emt 0:00:08]} 16. exd5 {[%emt 0:01:49]} Nxd5 {[%emt 0:00:51]} 17. Nxd5 {[%emt 0:00:24]} cxd5 {[%emt 0:00:13]} 18. Qd2 {[%emt 0:00:47]} d4 {[%emt 0:06:45]} 19. Bf2 {[%emt 0:00:53]} Qd5 {[%emt 0:00:17]} 20. b3 {[%emt 0:09:29]} d3 {[%emt 0:02:00]} 21. Rxe8+ {[%emt 0:01:11]} ({Better is} 21. Rad1 $15) 21... Rxe8 {[%emt 0:00:10]} 22. Rd1 {[%emt 0:00:01]} (22. Re1 $17 Rc8 23. Rc1) 22... Bd4 {[%emt 0:00:58]} 23. Bxd4 {[%emt 0:06:08]} Qxd4+ $2 {[%emt 0:00:16]} 24. Qf2 {[%emt 0:00:01] [#]} Qc3 $1 {[%emt 0:10:14]} 25. Qd2 $2 {[%emt 0:02:09] [#]} (25. Kf1 Re2 26. Qh4) 25... Qd4+ {[%emt 0:00:14]} (25... Qc5+ $1 $19 26. Qf2 Qc2 27. Qxc2 dxc2) 26. Qf2 {[%emt 0:00:05]} Re3 {[%emt 0:00:05]} 27. h3 {[%emt 0:03:40]} h5 {[%emt 0:00:11]} 28. h4 {[%emt 0:00:43]} ({White should play} 28. b4) 28... Qe5 {[%emt 0:02:54]} 29. Kf1 $2 {[%emt 0:00:29] [#]} (29. Qd2 $17) 29... Re2 $1 {[%emt 0:00:54]} 30. Qxa7 {[%emt 0:00:29]} d2 $19 {[%emt 0:02:18]} (30... Qg3 $142 31. Qg1 Rxa2) 31. Qf2 {[%emt 0:00:29]} Rxf2+ {[%emt 0:00:51]} 32. Kxf2 {[%emt 0:00:02]} Qd4+ {[%emt 0:01:24]} 33. Ke2 {[%emt 0:00:04]} Qxh4 {[%emt 0:00:04]} 34. Rxd2 {[%emt 0:00:11]} Qg5 {[%emt 0:00:12]} 35. Ke1 {[%emt 0:00:07]} h4 {[%emt 0:00:05]} 36. b4 {[%emt 0:01:46]} Qf4 {[%emt 0:01:35]} 0-1